[Event "48th Ciutat de Badalona Open 2024"]
[Site "Badalona"]
[Date "2024.08.05"]
[Round "4.2"]
[White "Chavez Suarez, Carlos Alberto"]
[Black "Diaz Perez, Michel Alejandro"]
[Result "1-0"]
[ECO "C86"]
[WhiteElo "2279"]
[BlackElo "2487"]
[Annotator "TA"]
[PlyCount "101"]
[EventDate "2024.07.29"]
[EventCountry "ESP"]
[SourceTitle "playchess.com"]
[Source "ChessBase"]
[SourceQuality "1"]
[TimeControl "5400+30"]

{[%evp 19,101,5,0,0,6,10,12,-12,-16,-8,4,2,50,0,-10,-7,-4,-6,0,-1,0,0,0,0,0,0,0,0,39,45,58,6,30,0,49,47,37,18,46,27,58,52,75,53,45,54,70,26,18,32,20,23,106,118,110,35,66,49,254,156,145,145,135,143,1016,1004,3079,2819,29950,29950,29942,12841,29985,29986,29987,29988,29988,29989,29990,29991,29991,29992,29995,1494]} 1. e4 {[%emt 0:00:10]} e5 {[%emt 0:01:42]} 2. Nf3 {[%emt 0:01:19]} Nc6 {[%emt 0:00:02]} 3. Bb5 {[%emt 0:00:08]} a6 {[%emt 0:00:05]} 4. Ba4 {[%emt 0:00:05]} Nf6 {[%emt 0:00:09]} 5. Qe2 {[%emt 0:00:06]} b5 {[%emt 0:02:34]} 6. Bb3 {[%emt 0:00:05]} Be7 {[%emt 0:00:06]} 7. O-O {[%emt 0:00:12]} O-O {[%emt 0:00:11]} 8. c3 {[%emt 0:00:05]} d5 {[%emt 0:01:37]} 9. exd5 {[%emt 0:04:13]} Nxd5 {[%emt 0:00:04]} 10. Nxe5 {[%emt 0:00:35]} Nxe5 {[%emt 0:00:03]} (10... Nf4 {keeps more tension.} 11. Qe4 Nxe5 12. d4 Bb7) 11. Qxe5 {[%emt 0:00:08]} Bb7 {[%emt 0:00:30]} 12. d4 {[%emt 0:00:42]} Qd7 {[%emt 0:07:25]} 13. Qh5 {[%emt 0:07:59] The position is equal.} (13. Bc2 {simplifies} Rfe8 14. Qf5 Qxf5 15. Bxf5 Bd6 16. a4) 13... Rae8 {[%emt 0:08:34][%cal Ba8e8,Be8e4,Be4h4][%mdl 1056] Black has compensation.} 14. a4 {[%emt 0:05:26]} Bd6 {[%emt 0:10:29][%cal Oe8e4]} 15. Bc2 {[%emt 0:07:29]} Nf6 {[%emt 0:03:44]} (15... g6 $11 16. Qh4 Be7) 16. Qh4 {[%emt 0:00:13]} (16. Qf5 $14) 16... Be4 $11 {[%emt 0:02:38]} 17. Bxe4 {[%emt 0:05:36]} Rxe4 {[%emt 0:00:26]} 18. Qh3 {[%emt 0:00:06]} Qxh3 {[%emt 0:17:04]} (18... bxa4 $2 {too greedy.} 19. Qxd7 Nxd7 20. Nd2 $18 (20. Rxa4 Ra8 $18)) 19. gxh3 {[%emt 0:00:04]} Rh4 {[%emt 0:00:09]} 20. Kg2 {[%emt 0:02:22]} Nd5 {[%emt 0:00:10]} 21. axb5 {[%emt 0:00:59]} axb5 {[%emt 0:00:01]} 22. Na3 {[%emt 0:04:08]} b4 {[%emt 0:12:43]} 23. Nb5 {[%emt 0:11:28][%cal Ba3b5,Bb5a7,Ba7c6][%mdl 32]} Nf4+ {[%emt 0:01:24]} 24. Bxf4 {[%emt 0:00:15]} Bxf4 {[%emt 0:00:01]} 25. cxb4 {[%emt 0:00:43]} (25. c4 $14) 25... h6 {[%emt 0:04:40]} 26. Na7 {[%emt 0:12:52]} f5 {[%emt 0:05:25]} (26... Rb8 $11) 27. Ra3 {[%emt 0:05:31]} Rf6 {[%emt 0:00:02]} 28. Rc3 {[%emt 0:02:49]} Kh7 {[%emt 0:05:18]} 29. Nc6 {[%emt 0:05:07]} Bd6 {[%emt 0:05:32]} 30. Re1 {[%emt 0:02:00]} g5 {[%emt 0:03:51]} 31. d5 {[%emt 0:05:06]} g4 {[%emt 0:02:41]} 32. Re6 {[%emt 0:01:07]} Kg7 {[%emt 0:01:16]} 33. Rxf6 {[%emt 0:01:13]} Kxf6 $14 {[%emt 0:00:05][%mdl 4096] Endgame. KRB-KRN} 34. b5 {[%emt 0:00:21]} h5 {[%emt 0:00:34]} 35. Re3 {[%emt 0:00:28]} gxh3+ {[%emt 0:01:00]} (35... Kg7 $11) 36. Rxh3 $16 {[%emt 0:01:23]} Rg4+ {[%emt 0:00:02]} 37. Kh1 {[%emt 0:00:25]} ({White should try} 37. Kf1 $16) 37... h4 {[%emt 0:00:02]} 38. Re3 {[%emt 0:00:08]} Kg5 $2 {[%emt 0:02:54] [#]} ({Better is} 38... Bc5 $1 $14 39. Re6+ Kg5) 39. h3 {[%emt 0:00:13]} Rc4 {[%emt 0:00:42]} 40. Re6 {[%emt 0:00:16]} Bc5 {[%emt 0:02:28]} 41. Ne5 {[%emt 0:02:11]} Rc2 {[%emt 0:00:33][%mdl 8192] Loses the game.} (41... Rc1+ $16 42. Kg2 Rc2) 42. Rc6 $18 {[%emt 0:00:35] [#] Threatens to win with Nd3.} f4 {[%emt 0:02:01]} 43. Nd3 {[%emt 0:00:10]} Rd2 {[%emt 0:00:11]} 44. Rxc5 {[%emt 0:00:11] KRN-KR} Rd1+ {[%emt 0:00:31]} 45. Kg2 {[%emt 0:00:05] White wants to mate with d6+.} f3+ {[%emt 0:00:14]} 46. Kxf3 {[%emt 0:00:08] White mates.} Rxd3+ {[%emt 0:00:48]} 47. Ke2 {[%emt 0:00:20]} Rd4 {[%emt 0:00:43]} 48. d6+ {[%emt 0:00:05]} Kf4 {[%emt 0:00:03]} 49. dxc7 {[%emt 0:00:04]} Re4+ {[%emt 0:00:12]} 50. Kf1 {[%emt 0:00:09]} Kf3 {[%emt 0:00:37]} 51. Rf5+ {[%emt 0:00:11] Weighted Error Value: White=0.15 (very precise) /Black=0.49.  Loses game:     	---       	Black=2      Mistake:       	White=3     	Black=3      Inaccurate:     	White=3     	Black=5      OK:         	White=14    	Black=9      Best:        	White=1     	Black=1} 1-0

[Event "48th Ciutat de Badalona Open 2024"]
[Site "Badalona"]
[Date "2024.08.05"]
[Round "4.3"]
[White "Perpinya Rofes, Lluis Maria"]
[Black "Vitier Vazquez, Cristian"]
[Result "0-1"]
[ECO "B03"]
[WhiteElo "2189"]
[BlackElo "2357"]
[Annotator "TA"]
[PlyCount "80"]
[EventDate "2024.07.29"]
[EventCountry "ESP"]
[SourceTitle "playchess.com"]
[Source "ChessBase"]
[SourceQuality "1"]
[TimeControl "5400+30"]

{[%evp 15,80,22,13,12,15,-12,19,-11,-14,-17,-18,-31,0,-16,4,0,0,-12,0,-16,-11,-18,-5,-33,-6,-56,-56,-143,-161,-176,-158,-160,-179,-178,-204,-216,-164,-298,-331,-323,-334,-312,-295,-292,-141,-127,-146,-134,-134,-158,-113,-185,-176,-222,-179,-204,-197,-365,-364,-366,-347,-413,-428,-411,-390,-29977,-29974]} 1. e4 {[%emt 0:00:15][%cal Be2e4,Be4e5][%mdl 32]} Nf6 {[%emt 0:00:57]} 2. e5 {[%emt 0:00:55]} Nd5 {[%emt 0:00:08]} 3. d4 {[%emt 0:00:58]} d6 {[%emt 0:00:30]} 4. c4 {[%emt 0:01:22]} Nb6 {[%emt 0:00:07]} 5. exd6 {[%emt 0:00:20]} cxd6 {[%emt 0:00:07]} 6. d5 {[%emt 0:07:12]} e5 {[%emt 0:06:09]} 7. Nc3 {[%emt 0:01:54]} Be7 {[%emt 0:02:17]} 8. Bd3 {[%emt 0:19:41]} O-O {[%emt 0:04:36]} 9. Nge2 {[%emt 0:01:37]} Na6 {[%emt 0:22:21]} 10. Be3 {[%emt 0:07:50]} Nb4 {[%emt 0:14:29]} 11. O-O {[%emt 0:09:06] The position is equal.} f5 {[%emt 0:02:35]} 12. f3 {[%emt 0:00:51][%cal Bf2f3,Bf3f4][%mdl 32]} Nxd3 {[%emt 0:10:48]} 13. Qxd3 {[%emt 0:00:07]} Nd7 {[%emt 0:00:14]} 14. f4 {[%emt 0:14:03]} Nc5 {[%emt 0:10:33]} 15. Qc2 {[%emt 0:14:30] Black must now prevent Bxc5.} (15. Bxc5 e4 16. Qe3 (16. Nxe4 $2 fxe4 17. Qxe4 dxc5 $19) 16... dxc5 $14) 15... e4 {[%emt 0:00:55]} 16. a3 {[%emt 0:03:39]} a5 {[%emt 0:05:53]} 17. Rfd1 {[%emt 0:06:21]} Bd7 {[%emt 0:05:54]} 18. b3 {[%emt 0:01:52]} Rc8 {[%emt 0:00:44]} 19. Nc1 {[%emt 0:02:22]} Bf6 {[%emt 0:01:20][%cal Ob7b5] ...b5! would now be deadly.} 20. Rb1 {[%emt 0:00:52]} (20. a4 $1 $11) 20... b5 $15 {[%emt 0:05:43]} 21. Qd2 {[%emt 0:02:19]} (21. Nxb5 $15 Bxb5 22. cxb5) 21... bxc4 $17 {[%emt 0:02:19]} 22. bxc4 {[%emt 0:00:13] [#]} Na4 $1 {[%emt 0:00:06]} 23. N1e2 {[%emt 0:02:23]} Nxc3 {[%emt 0:01:36]} 24. Nxc3 {[%emt 0:00:06]} Rxc4 {[%emt 0:00:05]} 25. Rdc1 {[%emt 0:00:59]} Qc8 {[%emt 0:00:33]} 26. Nb5 {[%emt 0:00:43]} (26. Ne2 {was necessary.}) 26... Bxb5 $19 {[%emt 0:00:12]} 27. Rxb5 {[%emt 0:00:11]} Rxc1+ {[%emt 0:01:31]} 28. Qxc1 {[%emt 0:00:04] [#]} Bd4 $1 {[%emt 0:00:21][%mdl 512]} 29. Qd2 {[%emt 0:00:24]} Qa6 {[%emt 0:01:57]} (29... Qc4 $19 {has better winning chances.} 30. Rb1 Bxe3+ 31. Qxe3 Qxd5) 30. a4 $17 {[%emt 0:00:28]} Bxe3+ {[%emt 0:00:00]} 31. Qxe3 {[%emt 0:00:05][%mdl 4096] Endgame. KQR-KQR} Rc8 {[%emt 0:00:00]} 32. h3 {[%emt 0:01:37]} h6 {[%emt 0:00:00]} 33. Kh2 {[%emt 0:00:23]} (33. Qb6 $17 Qxb6+ 34. Rxb6) 33... Kh7 $19 {[%emt 0:01:06]} 34. Qd2 {[%emt 0:00:46]} (34. Qb6 {was worth a try.} Qxb6 35. Rxb6) 34... Re8 {[%emt 0:00:38] ...e3 is the strong threat.} 35. Qe3 {[%emt 0:00:54]} Qa8 {[%emt 0:00:06]} 36. h4 $2 {[%emt 0:00:22]} (36. Kg3) 36... Qd8 {[%emt 0:00:05]} 37. Kh3 {[%emt 0:00:16]} Qc7 {[%emt 0:00:27] Prevents Rb7} 38. Rb3 {[%emt 0:00:47]} Qc4 {[%emt 0:00:16]} 39. Rb7 {[%emt 0:00:40]} Qxd5 {[%emt 0:01:01]} 40. Qg3 $2 {[%emt 0:00:23]} (40. Qa7 $19 Qg8 41. Qxa5) 40... Qxb7 {[%emt 0:01:51] Weighted Error Value: White=0.50/Black=0.14 (very precise) .  Mistake:       	White=7     	Black=1      Inaccurate:     	White=3     	Black=2      OK:         	White=4     	Black=14     Best:        	White=1     	Black=3      Strong:       	---       	Black=1} 0-1

[Event "48th Ciutat de Badalona Open 2024"]
[Site "Badalona"]
[Date "2024.08.05"]
[Round "4.4"]
[White "Utsab Chatterjee"]
[Black "Luna Cortes, Luis"]
[Result "1/2-1/2"]
[ECO "B40"]
[WhiteElo "2289"]
[BlackElo "2173"]
[Annotator "NA RC"]
[PlyCount "163"]
[EventDate "2024.07.29"]
[EventCountry "ESP"]
[SourceTitle "playchess.com"]
[Source "ChessBase"]
[SourceQuality "1"]
[TimeControl "5400+30"]

1. e4 {[%emt 1:31:00]} c5 {[%emt 0:13:19]} 2. Nf3 {[%emt 0:00:00]} Nc6 {[%emt 0:00:51]} 3. d4 {[%emt 0:00:00]} cxd4 {[%emt 0:00:33]} 4. Nxd4 {[%emt 0:00:00]} Nf6 {[%emt 0:00:23]} 5. Nc3 {[%emt 0:00:00]} e6 {[%emt 0:00:33]} 6. Nxc6 {[%emt 0:00:00]} bxc6 {[%emt 0:00:11]} 7. Bd3 {[%emt 0:00:00]} d5 {[%emt 0:06:58]} 8. O-O {[%emt 0:00:00]} Be7 {[%emt 0:00:41]} 9. b3 {[%emt 0:00:00]} Qa5 {[%emt 0:00:45]} 10. Bd2 {[%emt 0:00:00]} Bb4 {[%emt 0:00:23]} 11. Qe1 {[%emt 0:00:00]} d4 {[%emt 0:01:26]} 12. Nb1 {[%emt 0:00:00]} Bxd2 {[%emt 0:00:09]} 13. Nxd2 {[%emt 0:00:00]} Ba6 {[%emt 0:03:26]} 14. Qe2 {[%emt 0:00:00]} Bxd3 {[%emt 0:01:41]} 15. cxd3 {[%emt 0:00:00]} O-O {[%emt 0:00:29]} 16. f4 {[%emt 0:00:00]} Nd7 {[%emt 0:01:30]} 17. Rfc1 {[%emt 0:00:00]} c5 {[%emt 0:01:15]} 18. e5 {[%emt 0:00:00]} Rac8 {[%emt 0:03:44]} 19. Nc4 {[%emt 0:00:00]} Qa6 {[%emt 0:00:16]} 20. Rc2 {[%emt 0:00:00]} Nb6 {[%emt 0:09:29]} 21. Nd6 {[%emt 0:00:00]} Nd5 {[%emt 0:00:15]} 22. Nxc8 {[%emt 0:00:00]} Rxc8 {[%emt 0:00:08]} 23. Rac1 {[%emt 0:00:00]} Qa3 {[%emt 0:05:31]} 24. Qd2 {[%emt 0:00:00]} g6 {[%emt 0:07:18]} 25. Rc4 {[%emt 0:00:00]} Nb6 {[%emt 0:00:22]} 26. Kf2 {[%emt 0:00:00]} a5 {[%emt 0:03:49]} 27. g4 {[%emt 0:00:00]} a4 {[%emt 0:03:37]} 28. b4 {[%emt 0:00:00]} Nxc4 {[%emt 0:00:12]} 29. Rxc4 {[%emt 0:00:00]} Rb8 {[%emt 0:00:08]} 30. bxc5 {[%emt 0:00:00]} Kf8 {[%emt 0:02:10]} 31. Rc2 {[%emt 0:00:00]} Rc8 {[%emt 0:00:25]} 32. c6 {[%emt 0:00:00]} Kg7 {[%emt 0:04:30]} 33. g5 {[%emt 0:00:00]} h6 {[%emt 0:00:29]} 34. gxh6+ {[%emt 0:00:00]} Kh7 {[%emt 0:00:08]} 35. h4 {[%emt 0:00:00]} Qf8 {[%emt 0:00:40]} 36. Kg3 {[%emt 0:00:00]} Qxh6 {[%emt 0:01:00]} 37. Qf2 {[%emt 0:00:00]} Qh5 {[%emt 0:02:27]} 38. Qf3 {[%emt 0:00:00]} Qh6 {[%emt 0:00:43]} 39. Rc4 {[%emt 0:00:00]} Qf8 {[%emt 0:01:01]} 40. Rxa4 {[%emt 0:00:00]} Qc5 {[%emt 0:01:38]} 41. Rc4 {[%emt 0:00:00]} Qa5 {[%emt 0:00:08]} 42. a4 {[%emt 0:00:00]} Qe1+ {[%emt 0:01:04]} 43. Kh3 {[%emt 0:00:00]} Kg7 {[%emt 0:01:33]} 44. Rc2 {[%emt 0:00:00]} Rh8 {[%emt 0:00:32]} 45. Rf2 {[%emt 0:00:00]} Qc3 {[%emt 0:03:39]} 46. a5 {[%emt 0:00:00]} Qxa5 {[%emt 0:00:34]} 47. Kg3 {[%emt 0:00:00]} Qc3 {[%emt 0:01:37]} 48. Rh2 {[%emt 0:00:00]} Qe1+ {[%emt 0:02:46]} 49. Qf2 {[%emt 0:00:00]} Qc3 {[%emt 0:00:16]} 50. Qc2 {[%emt 0:00:00]} Qe1+ {[%emt 0:00:16]} 51. Kg4 {[%emt 0:00:00]} Qg1+ {[%emt 0:00:41]} 52. Qg2 {[%emt 0:00:00]} Qd1+ {[%emt 0:01:24]} 53. Qe2 {[%emt 0:00:00]} Qg1+ {[%emt 0:00:43]} 54. Kf3 {[%emt 0:00:00]} Qc1 {[%emt 0:00:29]} 55. Qe4 {[%emt 0:00:00]} Qf1+ {[%emt 0:01:21]} 56. Kg3 {[%emt 0:00:00]} Qg1+ {[%emt 0:01:30]} 57. Rg2 {[%emt 0:00:00]} Qc1 {[%emt 0:01:20]} 58. Qxd4 {[%emt 0:00:00]} Qxc6 {[%emt 0:00:45]} 59. f5 {[%emt 0:00:00]} exf5 {[%emt 0:02:42]} 60. e6+ {[%emt 0:00:00]} f6 {[%emt 0:00:04]} 61. Qa7+ {[%emt 0:00:00]} Kh6 {[%emt 0:00:33]} 62. Qe3+ {[%emt 0:00:00]} Kg7 {[%emt 0:00:04]} 63. Ra2 {[%emt 0:00:00]} Qd6+ {[%emt 0:00:26]} 64. Qf4 {[%emt 0:00:00]} Qxd3+ {[%emt 0:01:14]} 65. Kf2 {[%emt 0:00:00]} Rc8 {[%emt 0:01:32]} 66. Ra7+ {[%emt 0:00:00]} Kg8 {[%emt 0:00:41]} 67. Rd7 {[%emt 0:00:00]} Qc2+ {[%emt 0:03:00]} 68. Rd2 {[%emt 0:00:00]} Qc5+ {[%emt 0:00:16]} 69. Kf1 {[%emt 0:00:35]} Qe5 {[%emt 0:01:36]} 70. Qxe5 {[%emt 0:07:10]} fxe5 {[%emt 0:00:05]} 71. h5 {[%emt 0:00:06]} Kh7 {[%emt 0:00:32]} 72. Rg2 {[%emt 0:00:31]} gxh5 {[%emt 0:01:34]} 73. Rg5 {[%emt 0:27:38]} Re8 {[%emt 0:00:12]} 74. Rxf5 {[%emt 0:00:00]} Rxe6 {[%emt 0:00:05]} 75. Rxh5+ {[%emt 0:00:00]} Kg6 {[%emt 0:01:02]} 76. Rh8 {[%emt 0:00:00]} Ra6 {[%emt 0:01:15]} 77. Rf8 {[%emt 0:00:00]} Ra2 {[%emt 0:00:27]} 78. Ke1 {[%emt 0:00:00]} Kg5 {[%emt 0:00:08]} 79. Rf7 {[%emt 0:00:00]} Kg4 {[%emt 0:00:10]} 80. Rf8 {[%emt 0:00:00]} Ra4 {[%emt 0:00:20]} 81. Ke2 {[%emt 0:00:00]} Ra3 {[%emt 0:01:30]} 82. Rf7 {[%emt 0:00:00]} 1/2-1/2

[Event "48th Ciutat de Badalona Open 2024"]
[Site "Badalona"]
[Date "2024.08.05"]
[Round "4.5"]
[White "Blasco Coll, Andreu"]
[Black "Pawar, Harshit"]
[Result "1-0"]
[ECO "C02"]
[WhiteElo "2260"]
[BlackElo "2284"]
[Annotator "RC"]
[PlyCount "65"]
[EventDate "2024.07.29"]
[EventCountry "ESP"]
[SourceTitle "playchess.com"]
[Source "ChessBase"]
[SourceQuality "1"]
[TimeControl "5400+30"]

1. e4 {[%emt 0:00:04]} e6 {[%emt 0:03:40]} 2. d4 {[%emt 0:00:14]} d5 {[%emt 0:00:04]} 3. e5 {[%emt 0:00:17]} c5 {[%emt 0:00:10]} 4. c3 {[%emt 0:00:11]} Nc6 {[%emt 0:00:02]} 5. Nf3 {[%emt 0:00:11]} Nge7 {[%emt 0:00:51]} 6. Na3 {[%emt 0:00:24]} cxd4 {[%emt 0:02:19]} 7. cxd4 {[%emt 0:00:17]} Nf5 {[%emt 0:00:17]} 8. Nc2 {[%emt 0:00:34]} Be7 {[%emt 0:00:50]} 9. Be2 {[%emt 0:00:55]} O-O {[%emt 0:01:02]} 10. O-O {[%emt 1:32:23]} Bd7 {[%emt 0:02:30]} 11. Kh1 {[%emt 0:00:00]} Rc8 {[%emt 0:03:57]} 12. Bd3 {[%emt 0:00:00]} h6 {[%emt 0:04:18]} 13. g4 {[%emt 0:00:00]} Nh4 {[%emt 0:01:17]} 14. Nxh4 {[%emt 0:00:00]} Bxh4 {[%emt 0:00:02]} 15. f4 {[%emt 0:00:00]} f6 {[%emt 0:04:51]} 16. exf6 {[%emt 0:00:00]} Bxf6 {[%emt 0:06:00]} 17. g5 {[%emt 0:00:00]} Bxd4 {[%emt 0:05:03]} 18. Qh5 {[%emt 0:00:00]} Be8 {[%emt 0:04:53]} 19. Qh3 {[%emt 0:00:00]} e5 {[%emt 0:03:20]} 20. Nxd4 {[%emt 0:00:00]} Nxd4 {[%emt 0:01:01]} 21. gxh6 {[%emt 0:00:00]} e4 {[%emt 0:01:23]} 22. hxg7 {[%emt 0:00:00]} Kxg7 {[%emt 0:00:03]} 23. f5 {[%emt 0:00:00]} Nxf5 {[%emt 0:04:58]} 24. Rxf5 {[%emt 0:00:00]} Rxf5 {[%emt 0:01:57]} 25. Qxf5 {[%emt 0:00:00]} Bg6 {[%emt 0:01:20]} 26. Qe5+ {[%emt 0:00:00]} Kh7 {[%emt 0:00:01]} 27. Be2 {[%emt 0:08:30]} Qe8 {[%emt 0:23:42]} 28. Qf4 {[%emt 0:00:00]} d4 {[%emt 0:00:49]} 29. Qh6+ {[%emt 0:00:00]} Kg8 {[%emt 0:00:02]} 30. Bf4 {[%emt 0:00:00]} e3 {[%emt 0:00:53]} 31. Bf3 {[%emt 0:00:00]} Rc6 {[%emt 0:02:55]} 32. Rg1 {[%emt 0:00:00]} Qe6 {[%emt 0:01:36]} 33. Rxg6+ {[%emt 0:00:00]} 1-0

[Event "48th Ciutat de Badalona Open 2024"]
[Site "Badalona"]
[Date "2024.08.05"]
[Round "4.6"]
[White "Huh, Isaak"]
[Black "Cruz, Filemon"]
[Result "0-1"]
[ECO "B03"]
[WhiteElo "2082"]
[BlackElo "2249"]
[Annotator "NA RC"]
[PlyCount "104"]
[EventDate "2024.07.29"]
[EventCountry "ESP"]
[SourceTitle "playchess.com"]
[Source "ChessBase"]
[SourceQuality "1"]
[TimeControl "5400+30"]

1. e4 {[%emt 0:00:02]} Nf6 {[%emt 0:01:11]} 2. e5 {[%emt 0:00:43]} Nd5 {[%emt 0:00:13]} 3. d4 {[%emt 0:00:03]} d6 {[%emt 0:00:07]} 4. c4 {[%emt 0:00:03]} Nb6 {[%emt 0:00:08]} 5. exd6 {[%emt 0:00:04]} exd6 {[%emt 0:00:11]} 6. Bd3 {[%emt 0:02:09]} Nc6 {[%emt 0:00:22]} 7. Ne2 {[%emt 0:01:09]} g6 {[%emt 0:00:51]} 8. O-O {[%emt 0:11:05]} Bg7 {[%emt 0:00:29]} 9. Be3 {[%emt 0:06:28]} Nb4 {[%emt 0:07:11]} 10. b3 {[%emt 0:05:12]} d5 {[%emt 0:06:15]} 11. c5 {[%emt 0:01:56]} Nd7 {[%emt 0:00:24]} 12. Nbc3 {[%emt 0:00:14]} Nxd3 {[%emt 0:00:20]} 13. Qxd3 {[%emt 0:00:13]} c6 {[%emt 0:00:47]} 14. Qd2 {[%emt 0:05:25]} O-O {[%emt 0:05:50]} 15. Bh6 {[%emt 0:01:06]} b6 {[%emt 0:02:59]} 16. Bxg7 {[%emt 0:00:36]} Kxg7 {[%emt 0:00:09]} 17. cxb6 {[%emt 0:11:10]} axb6 {[%emt 0:00:51]} 18. Rac1 {[%emt 0:00:29]} Qf6 {[%emt 0:02:03]} 19. f4 {[%emt 0:04:49]} Qd6 {[%emt 0:05:34]} 20. f5 {[%emt 0:00:20]} Nf6 {[%emt 0:00:08]} 21. Ng3 {[%emt 0:01:05]} h6 {[%emt 0:00:49]} 22. Na4 {[%emt 0:14:47]} Rb8 {[%emt 0:02:05]} 23. Rf3 {[%emt 0:03:24]} Bd7 {[%emt 0:00:54]} 24. Nb2 {[%emt 0:02:35]} Rbe8 {[%emt 0:07:53]} 25. Nd3 {[%emt 0:01:06]} Ne4 {[%emt 0:00:09]} 26. Qb2 {[%emt 0:06:43]} Nxg3 {[%emt 0:02:21]} 27. f6+ {[%emt 0:00:09]} Kh7 {[%emt 0:03:21]} 28. hxg3 {[%emt 0:03:51]} Bf5 {[%emt 0:02:48]} 29. Ne5 {[%emt 0:03:01]} c5 {[%emt 0:01:04]} 30. Qd2 {[%emt 0:13:26]} cxd4 {[%emt 0:06:21]} 31. Nc6 {[%emt 0:00:27]} Be4 {[%emt 0:02:06]} 32. Rf4 {[%emt 0:00:14]} g5 {[%emt 0:00:08]} 33. Rf2 {[%emt 0:01:51]} d3 {[%emt 0:00:26]} 34. Ne7 {[%emt 0:00:15]} Qxg3 {[%emt 0:00:28]} 35. Re1 {[%emt 0:00:17]} Qg4 {[%emt 0:02:08]} 36. a4 {[%emt 0:00:54]} Rd8 {[%emt 0:01:19]} 37. Qb4 {[%emt 0:00:58]} Rfe8 {[%emt 0:01:00]} 38. Qxb6 {[%emt 0:00:15]} Bxg2 {[%emt 0:00:24]} 39. Rxg2 {[%emt 0:00:38]} d2 {[%emt 0:00:05]} 40. Qf2 {[%emt 0:00:46]} dxe1=Q+ {[%emt 0:01:31]} 41. Qxe1 {[%emt 0:00:01]} Qd4+ {[%emt 0:02:42]} 42. Rf2 {[%emt 0:00:03]} Rd6 {[%emt 0:02:33]} 43. Qb1+ {[%emt 0:00:39]} Kh8 {[%emt 0:00:40]} 44. Qf5 {[%emt 0:01:10]} Re6 {[%emt 0:03:36]} 45. Kf1 {[%emt 0:00:34]} Re4 {[%emt 0:04:26]} 46. a5 {[%emt 0:00:32]} Qd1+ {[%emt 0:00:21]} 47. Kg2 {[%emt 0:00:02]} Rg4+ {[%emt 0:00:35]} 48. Kh3 {[%emt 0:00:06]} Rh4+ {[%emt 0:00:32]} 49. Kg2 {[%emt 0:00:25]} Qh1+ {[%emt 0:00:49]} 50. Kg3 {[%emt 0:00:03]} Qg1+ {[%emt 0:00:14]} 51. Rg2 {[%emt 0:00:15]} Qe3+ {[%emt 0:00:11]} 52. Qf3 {[%emt 0:00:03]} Rh3+ {[%emt 0:00:16]} 0-1

[Event "48th Ciutat de Badalona Open 2024"]
[Site "Badalona"]
[Date "2024.08.05"]
[Round "4.7"]
[White "Marabajan Navas, Saul"]
[Black "Iglesias Romero, Jorge"]
[Result "1/2-1/2"]
[ECO "D31"]
[WhiteElo "2077"]
[BlackElo "2271"]
[Annotator "NA RC"]
[PlyCount "32"]
[EventDate "2024.07.29"]
[EventCountry "ESP"]
[SourceTitle "playchess.com"]
[Source "ChessBase"]
[SourceQuality "1"]
[TimeControl "5400+30"]

1. d4 {[%emt 0:00:03]} d5 {[%emt 0:00:53]} 2. c4 {[%emt 0:00:06]} e6 {[%emt 0:00:05]} 3. Nc3 {[%emt 0:00:06]} h6 {[%emt 0:00:22]} 4. Bf4 {[%emt 0:04:16]} Nf6 {[%emt 0:00:13]} 5. e3 {[%emt 0:00:29]} Bd6 {[%emt 0:00:08]} 6. Nge2 {[%emt 0:02:52]} O-O {[%emt 0:03:00]} 7. cxd5 {[%emt 0:03:46]} exd5 {[%emt 0:00:42]} 8. Bxd6 {[%emt 0:02:23]} Qxd6 {[%emt 0:00:10]} 9. Nf4 {[%emt 0:00:07]} Re8 {[%emt 0:05:37]} 10. Be2 {[%emt 0:00:56]} c6 {[%emt 0:00:25]} 11. Qc2 {[%emt 0:07:25]} Bg4 {[%emt 0:05:20]} 12. O-O {[%emt 0:01:32]} Bxe2 {[%emt 0:00:22]} 13. Ncxe2 {[%emt 0:02:09]} Nbd7 {[%emt 0:04:21]} 14. Ng3 {[%emt 0:05:53]} Ne4 {[%emt 0:01:52]} 15. Nxe4 {[%emt 0:02:47]} Rxe4 {[%emt 0:00:41]} 16. Nd3 {[%emt 0:00:45]} a5 {[%emt 0:04:51]} 1/2-1/2